bitfinex/quotes_BTCUSD_20260310
["timestamp","ask_amount","ask_price","bid_price","bid_amount"]
[1773145742753,0.10096346,70459.0,70453.0,0.00144]
[1773145743550,0.03,70457.0,70456.0,0.0002]
[1773145744193,0.03,70457.0,70452.0,0.0002]
[1773145744383,0.03,70457.0,70453.0,0.00144]
[1773145745261,0.10096554,70457.0,70448.0,0.0002]
[1773145745465,0.10096554,70457.0,70448.0,0.00144]
[1773145745466,0.03,70453.0,70448.0,0.00144]
[1773145745662,0.03,70451.0,70441.0,0.24706198]
[1773145745884,0.03,70451.0,70442.0,0.00144]
[1773145746125,0.03,70451.0,70443.0,0.07097937]
[1773145746532,0.03,70451.0,70442.0,0.00144]
[1773145746533,0.03,70447.0,70442.0,0.00144]
[1773145746765,0.07097133,70451.0,70441.0,0.0012]
[1773145746766,0.03,70443.0,70441.0,0.0012]
[1773145746933,0.03,70443.0,70441.0,0.0002]
[1773145747554,0.03,70443.0,70436.0,0.07098636]
[1773145747734,0.03,70439.0,70431.0,0.07099086]
[1773145748061,0.07097079,70452.0,70435.0,0.24686773]
[1773145748062,0.17421457,70450.0,70435.0,0.24686773]
[1773145748274,0.17421457,70448.0,70435.0,0.070987]
[1773145748479,0.17895978,70447.0,70435.0,0.07084042]
[1773145748830,0.03,70446.0,70435.0,0.07084042]
[1773145749485,0.03,70446.0,70434.0,0.07098772]
[1773145749690,0.20421457,70444.0,70433.0,0.07242878]
[1773145749840,0.20421457,70444.0,70433.0,0.00144]
[1773145750052,0.03,70440.0,70433.0,0.07098933]
[1773145750253,0.03,70440.0,70434.0,0.00144]
[1773145751058,0.03,70440.0,70435.0,0.00144]
[1773145751257,0.07097937,70443.0,70435.0,0.00144]
[1773145751258,0.20421457,70439.0,70435.0,0.00144]
[1773145751665,0.20421457,70439.0,70436.0,0.00144]
[1773145751861,0.20421457,70439.0,70432.0,0.00562]
[1773145752067,0.27519846,70439.0,70432.0,0.00562]
[1773145752269,0.27519846,70439.0,70433.0,0.00144]
[1773145752679,0.03,70437.0,70434.0,0.00144]
[1773145753085,0.03,70437.0,70430.0,0.00144]
[1773145753288,0.03,70433.0,70430.0,0.00144]
[1773145753498,0.00491168,70435.0,70430.0,0.00144]
[1773145753693,0.17421457,70435.0,70430.0,0.00144]
[1773145754354,0.03,70434.0,70430.0,0.00144]
[1773145754555,0.03,70434.0,70430.0,0.07243237]
[1773145754985,0.03,70434.0,70430.0,0.00144]
[1773145755383,0.03,70433.0,70426.0,0.070996]
[1773145755558,0.03,70433.0,70426.0,0.07110962]
[1773145755740,0.03,70431.0,70428.0,0.17588073]
[1773145755945,0.0709835,70439.0,70428.0,0.17588073]
[1773145756140,0.0709835,70439.0,70428.0,0.17573415]
[1773145756540,0.07098239,70440.0,70430.0,0.18077015]
[1773145756771,0.03,70439.0,70430.0,0.18077015]
[1773145757366,0.03,70439.0,70432.0,0.17588073]
[1773145757751,0.03,70440.0,70432.0,0.17588073]
[1773145758354,0.03,70440.0,70433.0,0.00849458]
[1773145758952,0.03,70439.0,70433.0,0.07948384]
[1773145759566,0.03,70439.0,70433.0,0.00849458]
[1773145759897,0.03,70441.0,70433.0,0.00849458]
[1773145760427,0.03,70441.0,70432.0,0.00144]
[1773145760977,0.03,70439.0,70432.0,0.00144]
[1773145761557,0.03,70439.0,70432.0,0.00129344]
[1773145762050,0.03,70439.0,70406.0,0.17636073]
[1773145762051,0.17912625,70438.0,70406.0,0.17636073]
[1773145762243,0.03,70432.0,70407.0,0.18077015]
[1773145762419,0.00144,70433.0,70410.0,0.1613341]
[1773145762594,0.00144,70433.0,70414.0,0.17588073]
[1773145762802,0.00144,70437.0,70425.0,0.0002]
[1773145763034,0.00144,70437.0,70426.0,0.24687659]
[1773145763035,0.07242577,70437.0,70426.0,0.24687659]
[1773145763207,0.07098577,70437.0,70426.0,0.24687659]
[1773145763406,0.03,70436.0,70426.0,0.24687659]
[1773145764132,0.03,70436.0,70426.0,0.17588073]
[1773145764751,0.03,70436.0,70426.0,0.24687708]
[1773145764885,0.03,70434.0,70426.0,0.17588073]
[1773145765778,0.03,70434.0,70426.0,0.24687692]
[1773145766108,0.03,70433.0,70426.0,0.24687692]
[1773145766317,0.03,70433.0,70426.0,0.07099619]
[1773145766649,0.03,70433.0,70425.0,0.25196759]
[1773145767110,0.03,70433.0,70425.0,0.24707817]
[1773145767246,0.03,70433.0,70425.0,0.17608073]
[1773145767793,0.03,70433.0,70425.0,0.2470779]
[1773145768006,0.03,70433.0,70426.0,0.17588073]
[1773145768229,0.03,70434.0,70423.0,0.07099751]
[1773145768440,0.20912625,70434.0,70424.0,0.00144]
[1773145768653,0.03,70434.0,70424.0,0.17732073]
[1773145768786,0.03,70434.0,70424.0,0.18221015]
[1773145768987,0.03,70434.0,70425.0,0.00488942]
[1773145769343,0.10098855,70434.0,70426.0,0.17588073]
[1773145769893,0.10098855,70434.0,70426.0,0.24687701]
[1773145770119,0.03,70433.0,70426.0,0.07099628]
[1773145770322,0.03,70433.0,70427.0,0.18388862]
[1773145771134,0.03,70432.0,70427.0,0.18388862]
[1773145771395,0.03,70432.0,70427.0,0.17588073]
[1773145771509,0.03,70432.0,70425.0,0.0709974]
[1773145772142,0.03,70431.0,70425.0,0.0709974]
[1773145773221,0.03,70432.0,70425.0,0.0709974]
[1773145773428,0.10099094,70432.0,70424.0,0.00144]
[1773145773629,0.10099094,70432.0,70422.0,0.24688055]
[1773145773630,0.03,70430.0,70418.0,0.07100426]
[1773145773829,0.03,70426.0,70416.0,0.0724464]
[1773145774030,0.03,70424.0,70415.0,0.07100663]
[1773145774976,0.03,70424.0,70414.0,0.07244809]
[1773145775580,0.03,70422.0,70414.0,0.07244809]
[1773145775812,0.03,70422.0,70408.0,0.07101393]
[1773145775813,0.03,70420.0,70409.0,0.00144]
[1773145776031,0.03,70413.0,70387.0,0.00488942]
[1773145776229,0.03,70413.0,70383.0,0.04265298]
[1773145776230,0.03,70413.0,70397.0,0.00488942]
[1773145776231,0.03011375,70413.0,70397.0,0.00488942]
[1773145776561,0.07099953,70423.0,70403.0,0.1683459]
[1773145776562,0.00144,70419.0,70403.0,0.1683459]
[1773145776911,0.00144,70419.0,70407.0,0.17323532]
[1773145777317,0.00144,70419.0,70408.0,0.00144]
[1773145777438,0.00144,70419.0,70415.0,0.0002]
[1773145777643,0.00144,70419.0,70406.0,0.1683459]
[1773145777644,0.03,70417.0,70406.0,0.1683459]
[1773145777955,0.03,70417.0,70407.0,0.1685459]
[1773145778355,0.07121954,70424.0,70407.0,0.0002]
[1773145778557,0.07099953,70423.0,70410.0,0.1683459]
[1773145779624,0.03,70420.0,70411.0,0.07101163]
[1773145779801,0.03,70420.0,70410.0,0.1683459]
[1773145780234,0.03,70420.0,70410.0,0.23935792]
[1773145780586,0.03,70420.0,70408.0,0.07245365]
[1773145780810,0.03496046,70420.0,70408.0,0.07245365]
[1773145781190,0.03,70418.0,70407.0,0.07265561]
[1773145781595,0.10100466,70418.0,70409.0,0.07101364]
[1773145781821,0.07100301,70420.0,70410.0,0.17308088]
[1773145782019,0.27099989,70423.0,70412.0,0.1683459]
[1773145782191,0.27099989,70423.0,70414.0,0.1683459]
[1773145782394,0.03,70422.0,70414.0,0.1683459]
[1773145783855,0.27099989,70423.0,70414.0,0.07100777]
[1773145784057,0.27099989,70423.0,70415.0,0.17308088]
[1773145784553,0.07121856,70424.0,70415.0,0.17308088]
[1773145785119,0.07121856,70424.0,70415.0,0.1683459]
[1773145785415,0.07121856,70424.0,70412.0,0.07101061]
[1773145786621,0.07121856,70424.0,70413.0,0.1811312]
[1773145787023,0.07121873,70424.0,70414.0,0.00473019]
[1773145787325,0.07121873,70424.0,70412.0,0.07121061]
[1773145787326,0.03022001,70424.0,70415.0,0.19134487]
[1773145787507,0.07099373,70429.0,70417.0,0.1811312]
[1773145787508,0.00144,70429.0,70417.0,0.1811312]
[1773145787711,0.07099247,70430.0,70419.0,0.1811312]
[1773145788027,0.07243247,70430.0,70421.0,0.1811312]
[1773145788230,0.03,70429.0,70421.0,0.1811312]
[1773145788450,0.03,70429.0,70418.0,0.00473019]
[1773145788588,0.03,70429.0,70418.0,0.18586139]
[1773145789622,0.03,70429.0,70419.0,0.1811312]
[1773145789820,0.03,70429.0,70419.0,0.18976575]
[1773145790201,0.10099389,70429.0,70421.0,0.1811312]
[1773145791624,0.00466381,70435.0,70421.0,0.1811312]
[1773145791830,0.00466381,70435.0,70420.0,0.00144]
[1773145791831,0.07242846,70434.0,70423.0,0.1811312]
[1773145792053,0.07098846,70434.0,70423.0,0.1811312]
[1773145792840,0.03,70433.0,70423.0,0.07099948]
[1773145793260,0.00144,70436.0,70425.0,0.00473019]
[1773145793433,0.00144,70437.0,70426.0,0.1811312]
[1773145793799,0.00610381,70437.0,70426.0,0.1811312]
[1773145793996,0.03,70436.0,70426.0,0.1811312]
[1773145794220,0.21220251,70434.0,70421.0,0.07100098]
[1773145794425,0.03,70432.0,70421.0,0.07100098]
[1773145794636,0.03,70432.0,70422.0,0.19103165]
[1773145795010,0.03,70432.0,70422.0,0.19088506]
[1773145795453,0.03,70433.0,70422.0,0.19088506]
[1773145796411,0.03144,70438.0,70426.0,0.1811312]
[1773145796610,0.10253835,70438.0,70428.0,0.1811312]
[1773145797762,0.10109835,70438.0,70428.0,0.1811312]
[1773145798281,0.03,70437.0,70428.0,0.1811312]
[1773145799045,0.10098618,70437.0,70428.0,0.1811312]
[1773145799269,0.00466381,70436.0,70427.0,0.00144]
[1773145799428,0.00466381,70436.0,70427.0,0.07243533]
[1773145800056,0.03,70436.0,70427.0,0.25356653]
[1773145800876,0.07097379,70449.0,70427.0,0.07243533]
[1773145801102,0.07119562,70447.0,70432.0,0.1811312]
[1773145801327,0.03,70446.0,70434.0,0.18098462]
[1773145801551,0.03,70446.0,70434.0,0.18083805]
[1773145802726,0.07119562,70447.0,70427.0,0.07110917]
[1773145802727,0.00466381,70443.0,70429.0,0.18586139]
[1773145802938,0.00466381,70443.0,70427.0,0.07110917]
[1773145802939,0.03,70438.0,70430.0,0.00144]
[1773145803106,0.03,70438.0,70427.0,0.00011384]
[1773145803305,0.00466381,70435.0,70427.0,0.00011384]
[1773145803541,0.07098412,70439.0,70427.0,0.00011384]
[1773145803542,0.03466381,70434.0,70427.0,0.00011384]
[1773145803812,0.00466381,70433.0,70427.0,0.00011384]
[1773145804015,0.03,70432.0,70422.0,0.00144]
[1773145804360,0.03,70432.0,70419.0,0.07100272]
[1773145804581,0.03,70432.0,70422.0,0.17545628]
[1773145804785,0.0709834,70441.0,70426.0,0.00473019]
[1773145804786,0.25321474,70441.0,70426.0,0.00473019]
[1773145805024,0.03,70435.0,70427.0,0.17401628]
[1773145805197,0.07098329,70440.0,70425.0,0.08590711]
[1773145805198,0.00466381,70438.0,70425.0,0.08590711]
[1773145805408,0.00144,70440.0,70424.0,0.07099801]
[1773145805409,0.17756892,70435.0,70424.0,0.07099801]
[1773145805613,0.17756892,70435.0,70423.0,0.00144]
[1773145805817,0.17756892,70433.0,70423.0,0.00144]
[1773145806014,0.03,70432.0,70423.0,0.07243944]
[1773145806228,0.03,70432.0,70423.0,0.00144]
[1773145806424,0.20756892,70432.0,70423.0,0.00144]
[1773145806626,0.00466381,70431.0,70421.0,0.07100152]
[1773145806806,0.03,70429.0,70422.0,0.00144]
[1773145807234,0.03,70429.0,70421.0,0.00144]
[1773145807759,0.03,70428.0,70421.0,0.00144]
[1773145808299,0.00022001,70447.0,70421.0,0.00144]
[1773145808475,0.0711984,70444.0,70425.0,0.17401628]
[1773145808713,0.00022001,70444.0,70429.0,0.17401628]
[1773145808918,0.00022001,70444.0,70421.0,0.00155377]
[1773145808919,0.00022001,70444.0,70432.0,0.00473019]
[1773145809092,0.00022001,70444.0,70436.0,0.07098642]
[1773145809302,0.03,70443.0,70429.0,0.01484759]
[1773145809498,0.20756892,70443.0,70430.0,0.00617019]
[1773145809703,0.20756892,70443.0,70429.0,0.17401628]
[1773145809882,0.07119885,70444.0,70427.0,0.07099348]
[1773145809883,0.03,70437.0,70427.0,0.07099348]
[1773145810087,0.03,70437.0,70427.0,0.07243348]
[1773145810282,0.03,70437.0,70427.0,0.24644976]
[1773145810489,0.03,70437.0,70428.0,0.17855297]
[1773145811243,0.17900892,70442.0,70428.0,0.17855297]
[1773145811244,0.03,70439.0,70428.0,0.17855297]
[1773145811761,0.03,70439.0,70428.0,0.24954725]
[1773145811902,0.03,70439.0,70428.0,0.17855297]
[1773145812098,0.03,70439.0,70428.0,0.17999297]
[1773145813217,0.10098355,70439.0,70428.0,0.25098702]
[1773145813418,0.03,70439.0,70429.0,0.17401628]
[1773145813627,0.03,70439.0,70428.0,0.07243405]
[1773145813628,0.00144,70442.0,70432.0,0.00453669]
[1773145813862,0.07119895,70444.0,70428.0,0.07243405]
[1773145813863,0.07241947,70443.0,70434.0,0.00453669]
[1773145814237,0.00022001,70439.0,70433.0,0.17401628]
[1773145815881,0.03,70438.0,70430.0,0.07099244]
[1773145816059,0.20756892,70438.0,70427.0,0.00144]
[1773145816254,0.0047655,70437.0,70422.0,0.07263958]
[1773145816490,0.03,70432.0,70422.0,0.07263958]
[1773145816717,0.03,70432.0,70422.0,0.00164]
[1773145816939,0.20756892,70432.0,70422.0,0.00164]
[1773145817276,0.07099146,70431.0,70422.0,0.00164]
[1773145817474,0.03,70430.0,70422.0,0.00164]
[1773145818787,0.03,70429.0,70422.0,0.07264033]
[1773145819191,0.07099017,70433.0,70423.0,0.17855297]
[1773145819804,0.07098743,70435.0,70424.0,0.07099852]
[1773145819999,0.03,70434.0,70424.0,0.07099852]
[1773145820210,0.03,70434.0,70425.0,0.17401628]
[1773145820412,0.03,70434.0,70424.0,0.07099852]
[1773145820413,0.03,70434.0,70426.0,0.17855297]
[1773145820615,0.03,70434.0,70426.0,0.19050011]
[1773145820831,0.03,70434.0,70426.0,0.01194714]
[1773145821040,0.03,70433.0,70424.0,0.24955149]
[1773145821267,0.03,70433.0,70424.0,0.17855297]
[1773145821400,0.03,70433.0,70423.0,0.07099905]
[1773145821604,0.20756892,70433.0,70423.0,0.07099905]
[1773145822341,0.20756892,70433.0,70422.0,0.00164]
[1773145822342,0.27855904,70433.0,70422.0,0.07263969]
[1773145822548,0.10099012,70433.0,70422.0,0.00164]
[1773145822726,0.03,70431.0,70422.0,0.0726402]
[1773145823134,0.03,70431.0,70422.0,0.0712002]
[1773145823439,0.20756892,70431.0,70422.0,0.0712002]
[1773145823850,0.20756892,70431.0,70423.0,0.0002]
[1773145825767,0.10099195,70431.0,70423.0,0.0002]
[1773145826140,0.10099195,70431.0,70418.0,0.08277464]
[1773145826141,0.03,70425.0,70418.0,0.0002]
[1773145826523,0.03,70425.0,70420.0,0.17401628]
[1773145826758,0.03,70425.0,70420.0,0.17855297]
[1773145827168,0.03,70424.0,70420.0,0.17401628]
[1773145827371,0.03,70424.0,70418.0,0.0712045]
[1773145827574,0.03,70424.0,70418.0,0.0002]
[1773145828135,0.25000407,70428.0,70418.0,0.0002]
[1773145828136,0.03,70423.0,70418.0,0.0002]
[1773145829117,0.03,70427.0,70418.0,0.0002]
[1773145831438,0.10099564,70427.0,70418.0,0.0002]
[1773145832992,0.17756892,70426.0,70418.0,0.0002]
[1773145833217,0.03,70425.0,70418.0,0.0002]
[1773145834126,0.20820776,70425.0,70418.0,0.0002]
[1773145834997,0.03,70421.0,70418.0,0.0002]
[1773145835569,0.03,70421.0,70411.0,0.07101155]
[1773145835570,0.03,70421.0,70411.0,0.07245155]
[1773145835947,0.07099852,70424.0,70410.0,0.0002]
[1773145835948,0.03,70420.0,70410.0,0.0002]
[1773145836706,0.03,70420.0,70411.0,0.00144]
[1773145836822,0.03,70420.0,70410.0,0.07121237]
[1773145837030,0.03,70419.0,70411.0,0.00144]
[1773145837456,0.03,70419.0,70410.0,0.23746106]
[1773145838062,0.03,70418.0,70411.0,0.16934538]
[1773145839005,0.03,70417.0,70410.0,0.0002]
[1773145839452,0.03,70417.0,70399.0,0.07102272]
[1773145839453,0.0047655,70416.0,70399.0,0.07102272]
[1773145839573,0.0047655,70416.0,70400.0,0.50060874]
[1773145839574,0.20820776,70414.0,70400.0,0.50060874]
[1773145839788,0.2130145,70414.0,70400.0,0.50060874]
[1773145840190,0.03,70411.0,70400.0,0.50060874]
[1773145840391,0.03,70409.0,70400.0,0.50060874]
[1773145841056,0.03,70407.0,70400.0,0.50060874]
[1773145841255,0.03,70405.0,70400.0,0.14169384]
[1773145841464,0.03,70403.0,70393.0,0.00159]
[1773145841667,0.0303792,70403.0,70393.0,0.00159]
[1773145841873,0.0303792,70403.0,70389.0,0.07103363]
[1773145841874,0.0303792,70403.0,70380.0,0.101]
[1773145841876,0.00480674,70398.0,70380.0,0.101]
[1773145842198,0.05421087,70403.0,70381.0,0.00987697]
[1773145842199,0.03,70389.0,70381.0,0.00987697]
[1773145842584,0.00480674,70388.0,70380.0,0.17204261]
[1773145842762,0.03,70387.0,70380.0,0.17204261]
[1773145842964,0.03,70387.0,70380.0,0.092602]
[1773145842965,0.04608371,70387.0,70380.0,0.092602]
[1773145843166,0.00144,70397.0,70380.0,0.08132503]
[1773145843167,0.03,70385.0,70380.0,0.08132503]
[1773145843595,0.03,70385.0,70380.0,0.15236783]
[1773145844004,0.03,70385.0,70380.0,0.08132503]
[1773145844206,0.03,70384.0,70380.0,0.08132503]
[1773145844990,0.03480674,70384.0,70380.0,0.08072788]
[1773145845171,0.00480674,70383.0,70380.0,0.08072788]
[1773145845571,0.00480674,70381.0,70378.0,0.000233]
[1773145845774,0.00094704,70380.0,70361.0,0.182805]
[1773145846053,0.07103988,70383.0,70367.0,0.00479557]
[1773145846054,0.03,70379.0,70367.0,0.00479557]
[1773145846180,0.03,70379.0,70371.0,0.00479557]
[1773145846382,0.03,70379.0,70371.0,0.182805]
[1773145846788,0.03037897,70379.0,70366.0,0.0137848]
[1773145847004,0.03,70378.0,70369.0,0.07105401]
[1773145847209,0.03,70378.0,70370.0,0.182805]
[1773145848084,0.00037897,70379.0,70357.0,0.0710655]
[1773145848085,0.06844897,70373.0,70357.0,0.0710655]
[1773145848287,0.06844897,70373.0,70350.0,0.00123]
[1773145848288,0.03,70370.0,70356.0,0.00023617]
[1773145848538,0.03,70370.0,70352.0,0.0713034]
[1773145848539,0.03,70370.0,70358.0,0.18487334]
[1773145848695,0.00144,70369.0,70360.0,0.18007777]
[1773145849285,0.00144,70369.0,70352.0,0.28332654]
[1773145849286,0.10119928,70367.0,70353.0,0.18007777]
[1773145849478,0.03,70367.0,70353.0,0.18007777]
[1773145849679,0.07105502,70368.0,70353.0,0.18026507]
[1773145849680,0.03,70362.0,70353.0,0.18026507]
[1773145849889,0.03,70362.0,70354.0,0.00023617]
[1773145850085,0.03,70362.0,70360.0,0.01]
[1773145850491,0.03,70360.0,70353.0,0.0001873]
[1773145850668,0.00595878,70363.0,70337.0,0.18007777]
[1773145850669,0.05057635,70354.0,70337.0,0.18007777]
[1773145850868,0.03,70347.0,70336.0,0.0003113]
[1773145851073,0.03796816,70376.0,70339.0,0.00479557]
[1773145851074,0.05034018,70359.0,70339.0,0.00479557]
[1773145851285,0.0710631,70360.0,70340.0,0.19742642]
[1773145851286,0.05485896,70356.0,70340.0,0.19742642]
[1773145851486,0.00144,70355.0,70342.0,0.18487334]
[1773145851957,0.00451878,70352.0,70336.0,0.00144]
[1773145852094,0.03,70350.0,70339.0,0.001]
[1773145852304,0.00144,70349.0,70340.0,0.18487334]
[1773145852505,0.00595878,70349.0,70332.0,0.07109103]
[1773145852705,0.08555433,70348.0,70333.0,0.18007777]
[1773145853020,0.00451878,70347.0,70333.0,0.18007777]
[1773145853227,0.03,70346.0,70333.0,0.18007777]
[1773145853428,0.03144,70346.0,70333.0,0.18007777]
[1773145853812,0.07107032,70353.0,70335.0,0.18007777]
[1773145854002,0.07107032,70353.0,70338.0,0.00479557]
[1773145854302,0.03144,70352.0,70339.0,0.18487334]
[1773145854517,0.03144,70352.0,70340.0,0.01021214]
[1773145854724,0.00037874,70355.0,70341.0,0.00479557]
[1773145854928,0.00144,70354.0,70344.0,0.18007777]
[1773145855132,0.00037874,70355.0,70344.0,0.18487334]
[1773145855289,0.03037874,70355.0,70344.0,0.07587455]
[1773145855632,0.03037874,70355.0,70347.0,0.18007777]
[1773145855929,0.03037874,70355.0,70349.0,0.18487334]
[1773145856155,0.00144,70354.0,70349.0,0.18487334]
[1773145856362,0.00144,70353.0,70349.0,0.18007777]
[1773145856564,0.07106437,70359.0,70349.0,0.18007777]
[1773145856770,0.07105753,70366.0,70349.0,0.18019152]
[1773145856971,0.00144,70361.0,70352.0,0.00479557]
[1773145857154,0.07105704,70367.0,70353.0,0.18487334]
[1773145857356,0.00144,70366.0,70354.0,0.01126924]
[1773145857558,0.03144,70366.0,70354.0,0.01126924]
[1773145857918,0.03,70366.0,70354.0,0.19134701]
[1773145858323,0.03,70366.0,70355.0,0.00479557]
[1773145858662,0.03144,70365.0,70356.0,0.19614225]
[1773145858871,0.03144,70365.0,70356.0,0.18487334]
[1773145859086,0.03144,70365.0,70356.0,0.18007777]
[1773145859289,0.03,70363.0,70351.0,0.18487334]
[1773145860221,0.03,70363.0,70352.0,0.00479557]
[1773145860395,0.00144,70362.0,70353.0,0.18007777]
[1773145860922,0.00144,70362.0,70355.0,0.18007777]
[1773145861551,0.05105386,70371.0,70356.0,0.07106714]
[1773145861754,0.07105056,70373.0,70360.0,0.18007777]
[1773145861959,0.00144,70372.0,70360.0,0.18007777]
[1773145862325,0.07104991,70374.0,70360.0,0.18007777]
[1773145862326,0.00144,70371.0,70361.0,0.00479557]
[1773145862543,0.00144,70371.0,70356.0,0.07106714]
[1773145862544,0.00023,70375.0,70363.0,0.00479557]
[1773145862740,0.00144,70374.0,70358.0,0.18007777]
[1773145862939,0.00144,70374.0,70356.0,0.07106714]
[1773145862940,0.00144,70373.0,70362.0,0.18007777]
[1773145863144,0.00144,70373.0,70364.0,0.18007777]
[1773145863345,0.00023,70375.0,70364.0,0.18007777]
[1773145863589,0.00023,70375.0,70364.0,0.18487334]
[1773145863590,0.00144,70372.0,70364.0,0.18487334]
[1773145863964,0.00144,70371.0,70364.0,0.07585411]
[1773145864173,0.00023,70375.0,70365.0,0.17253974]
[1773145864544,0.00144,70374.0,70365.0,0.17253974]
[1773145865172,0.00023,70375.0,70366.0,0.00479557]
[1773145865374,0.07135713,70379.0,70364.0,0.07105854]
[1773145865375,0.0003113,70379.0,70364.0,0.07105854]
[1773145865577,0.00451878,70388.0,70367.0,0.00479557]
[1773145865578,0.00144,70378.0,70367.0,0.00479557]
[1773145865784,0.07555435,70388.0,70371.0,0.00479557]
[1773145865980,0.00144,70387.0,70374.0,0.17075255]
[1773145866186,0.00144,70387.0,70374.0,0.17554812]
[1773145866568,0.07555435,70388.0,70374.0,0.17554812]
[1773145866763,0.07103557,70388.0,70376.0,0.17075255]
[1773145866967,0.00144,70387.0,70378.0,0.17554812]
[1773145867165,0.00144,70387.0,70376.0,0.00011375]
[1773145867470,0.00451878,70383.0,70366.0,0.17554812]
[1773145867632,0.18208467,70379.0,70367.0,0.07205567]
[1773145867930,0.00451878,70378.0,70367.0,0.07105567]
[1773145868109,0.00144,70377.0,70368.0,0.17554812]
[1773145868308,0.00144,70376.0,70368.0,0.17554812]
[1773145868514,0.00463243,70383.0,70368.0,0.17554812]
[1773145868709,0.00144,70382.0,70369.0,0.00479557]
[1773145868921,0.00011365,70383.0,70371.0,0.17554812]
[1773145869113,0.00144,70382.0,70371.0,0.17554812]
[1773145869332,0.00144,70382.0,70371.0,0.17075255]
[1773145869840,0.18208467,70381.0,70367.0,0.24660379]
[1773145870039,0.18677517,70381.0,70367.0,0.24660379]
[1773145870649,0.18677517,70381.0,70367.0,0.07585124]
[1773145870844,0.18677517,70381.0,70368.0,0.17075255]
[1773145871629,0.03,70380.0,70368.0,0.17075255]
[1773145871823,0.03,70380.0,70368.0,0.24180672]
[1773145872299,0.00144,70379.0,70368.0,0.24180672]
[1773145872460,0.00144,70379.0,70359.0,0.00144]
[1773145872461,0.03,70374.0,70359.0,0.00144]
[1773145872658,0.00144,70373.0,70360.0,0.17075255]
[1773145872825,0.03,70374.0,70360.0,0.17075255]
[1773145873029,0.00144,70373.0,70360.0,0.17075255]
[1773145873274,0.00144,70373.0,70360.0,0.17574717]
[1773145873877,0.00144,70373.0,70361.0,0.07106209]
[1773145874118,0.00144,70372.0,70362.0,0.17075255]
[1773145874259,0.07103459,70389.0,70363.0,0.00499462]
[1773145874457,0.00144,70382.0,70366.0,0.17075255]
[1773145874684,0.00144,70382.0,70370.0,0.17075255]
[1773145875082,0.07115355,70383.0,70361.0,0.08562404]
[1773145875083,0.00144,70385.0,70372.0,0.17075255]
[1773145875430,0.00144,70386.0,70376.0,0.17075255]
[1773145875551,0.00144,70386.0,70372.0,0.00011365]
[1773145875552,0.03,70390.0,70378.0,0.17075255]
[1773145875952,0.00144,70389.0,70382.0,0.17075255]
[1773145876201,0.07101561,70408.0,70383.0,0.17075255]
[1773145876390,0.00144,70402.0,70387.0,0.00499462]
[1773145876602,0.00144,70399.0,70390.0,0.17075255]
[1773145876808,0.00144,70401.0,70392.0,0.17075255]
[1773145877318,0.00562,70404.0,70393.0,0.00499462]
[1773145877673,0.03,70405.0,70392.0,0.17718717]
[1773145878085,0.03,70405.0,70393.0,0.24178233]
[1773145878287,0.03,70404.0,70393.0,0.07102978]
[1773145878491,0.00144,70414.0,70395.0,0.17075255]
[1773145878624,0.00144,70414.0,70399.0,0.17075255]
[1773145878819,0.00144,70414.0,70401.0,0.17075255]
[1773145879028,0.00144,70413.0,70401.0,0.17075255]
[1773145879403,0.03144,70412.0,70401.0,0.17075255]
[1773145879684,0.03155386,70412.0,70401.0,0.17075255]
[1773145880270,0.03,70410.0,70396.0,0.00499462]
[1773145880451,0.07101163,70411.0,70394.0,0.17075255]
[1773145880452,0.03,70406.0,70394.0,0.17075255]
[1773145880650,0.00144,70405.0,70394.0,0.17075255]
[1773145881038,0.00144,70405.0,70395.0,0.00499462]
[1773145881487,0.00144,70405.0,70395.0,0.17075255]
[1773145881655,0.18352467,70406.0,70391.0,0.24322392]
[1773145881865,0.21677517,70405.0,70391.0,0.24322434]
[1773145882413,0.21677517,70405.0,70401.0,0.0002]
[1773145882414,0.10101825,70405.0,70401.0,0.0002]
[1773145882649,0.21677517,70403.0,70389.0,0.07103321]
[1773145883074,0.21677517,70403.0,70393.0,0.0002]
[1773145883485,0.00144,70402.0,70393.0,0.0002]
[1773145883694,0.03144,70402.0,70393.0,0.0002]
[1773145884382,0.07101372,70409.0,70393.0,0.0002]
[1773145884383,0.00144,70409.0,70395.0,0.00499462]
[1773145884693,0.00144,70409.0,70393.0,0.07122947]
[1773145884694,0.00144,70410.0,70400.0,0.17075255]
[1773145884901,0.00144,70410.0,70401.0,0.17574717]
[1773145885104,0.00144,70410.0,70401.0,0.17075255]
[1773145886138,0.00144,70410.0,70401.0,0.17574717]
[1773145886560,0.00144,70410.0,70402.0,0.0710207]
[1773145886772,0.03,70409.0,70396.0,0.00499462]
[1773145886956,0.03,70407.0,70395.0,0.17075255]
[1773145887102,0.07245324,70410.0,70387.0,0.07103584]
[1773145887103,0.03,70405.0,70387.0,0.07103584]
[1773145887307,0.07245324,70410.0,70387.0,0.07103584]
[1773145887308,0.21208467,70402.0,70387.0,0.07103584]
[1773145887572,0.03,70400.0,70387.0,0.07103584]
[1773145887923,0.03,70400.0,70388.0,0.01145394]
[1773145888124,0.03,70400.0,70389.0,0.17574717]
[1773145888355,0.07101324,70410.0,70391.0,0.17075255]
[1773145888519,0.07101324,70410.0,70395.0,0.00499462]
[1773145888520,0.03,70407.0,70395.0,0.00499462]
[1773145888720,0.03,70407.0,70393.0,0.07102978]
[1773145888721,0.03,70407.0,70396.0,0.17075255]
[1773145888924,0.00033387,70412.0,70401.0,0.17075255]
[1773145889134,0.00033387,70412.0,70403.0,0.17075255]
[1773145889135,0.00144,70411.0,70403.0,0.17075255]
[1773145890801,0.03144,70411.0,70403.0,0.17075255]
[1773145891010,0.00177387,70412.0,70405.0,0.17075255]
[1773145892258,0.03,70413.0,70405.0,0.17075255]
[1773145892429,0.07100762,70415.0,70406.0,0.17574717]
[1773145892430,0.00144,70412.0,70406.0,0.17574717]
[1773145892658,0.00144,70412.0,70399.0,0.07102363]
[1773145892863,0.03,70411.0,70399.0,0.07102363]
[1773145893456,0.03,70411.0,70403.0,0.00499462]
[1773145893654,0.03,70411.0,70398.0,0.08557693]
[1773145893655,0.03,70411.0,70398.0,0.01311311]